bitfinex-derivatives/quotes_ETHF0:USTF0_20240915
["timestamp","ask_amount","ask_price","bid_price","bid_amount"]
[1726441882004,3.2078,2294.6,2293.6,3.2078]
[1726441882190,3.2078,2294.6,2292.5,1.30840628]
[1726441882191,3.2078,2295.2,2294.8,5.48279471]
[1726441882388,1.08816,2297.2,2294.5,5.48279471]
[1726441882389,12.6278,2295.0,2294.5,5.48279471]
[1726441882593,9.42,2295.0,2294.3,5.48279471]
[1726441882800,9.42,2295.0,2292.9,4.64055185]
[1726441882801,3.2078,2294.4,2292.9,3.2078]
[1726441882992,3.2078,2294.3,2294.1,5.48279471]
[1726441883194,3.2078,2294.3,2291.8,0.436]
[1726441883195,3.2078,2294.6,2294.2,5.48279471]
[1726441883396,3.2078,2294.7,2294.0,3.2078]
[1726441883598,0.218,2295.6,2293.2,1.08999]
[1726441883599,3.2078,2295.1,2293.7,3.2078]
[1726441883801,3.2078,2295.1,2293.2,1.08999]
[1726441883802,3.2078,2295.2,2294.9,6.46099471]
[1726441883999,3.2078,2295.2,2294.3,6.46099471]
[1726441884298,12.6278,2294.4,2293.1,3.2078]
[1726441884500,9.42,2294.4,2294.3,0.43579]
[1726441884705,12.6278,2295.2,2294.3,6.46099471]
[1726441884913,3.2078,2294.9,2293.9,3.2078]
[1726441885097,9.42,2295.2,2294.2,3.2078]
[1726441885297,3.2078,2294.9,2293.9,3.2078]
[1726441885502,3.2078,2294.9,2294.8,6.46099471]
[1726441885694,3.2078,2294.9,2294.7,0.43571]
[1726441885900,3.2078,2294.9,2294.7,6.46099471]
[1726441886099,12.6278,2295.2,2294.7,6.46099471]
[1726441886301,3.2078,2294.9,2293.7,3.2078]
[1726441886606,3.2078,2294.2,2293.7,6.46099471]
[1726441886793,9.42,2294.4,2293.9,3.2078]
[1726441886993,9.42,2294.4,2294.0,6.46099471]
[1726441887198,9.42,2294.4,2293.0,1.09009]
[1726441887199,13.7792,2294.4,2293.4,3.2078]
[1726441887405,13.7792,2294.4,2293.0,1.09009]
[1726441887406,12.6278,2294.4,2293.9,0.43586]
[1726441887707,12.6278,2294.4,2292.7,0.43609]
[1726441887708,3.2078,2294.1,2292.7,0.43609]
[1726441887907,19.78,2294.4,2292.8,0.43608]
[1726441887908,3.2078,2292.9,2292.8,0.43608]
[1726441888204,3.2078,2292.9,2292.7,6.46099471]
[1726441888205,9.42,2293.2,2292.7,3.2078]
[1726441888397,3.2078,2293.1,2292.8,6.46099471]
[1726441888594,3.2078,2293.7,2293.0,0.43604]
[1726441888809,9.42,2294.0,2293.4,3.25319471]
[1726441889006,9.42,2294.0,2293.7,3.25319471]
[1726441889195,15.42,2294.0,2293.3,3.2078]
[1726441889509,3.2078,2293.6,2292.1,3.2078]
[1726441889704,9.42,2292.8,2292.7,3.25319471]
[1726441889912,9.42,2292.8,2292.6,3.25319471]
[1726441890104,9.42,2293.6,2292.7,3.25319471]
[1726441890410,9.42,2293.6,2293.2,3.25319471]
[1726441890708,9.42,2294.4,2293.5,3.25319471]
[1726441890904,3.2078,2294.9,2294.5,3.25319471]
[1726441891094,9.42,2295.2,2293.7,3.2078]
[1726441891095,3.2078,2294.6,2293.7,3.2078]
[1726441891399,0.4317,2297.1,2292.6,3.2078]
[1726441891400,3.2078,2293.9,2292.6,3.2078]
[1726441891604,9.42,2294.4,2292.2,1.09045]
[1726441891605,3.2078,2294.2,2293.5,3.25319471]
[1726441891999,9.42,2294.4,2293.7,3.25319471]
[1726441892000,3.2078,2293.9,2293.7,3.25319471]
[1726441892201,3.2078,2293.9,2293.3,3.25319471]
[1726441892413,3.2078,2294.9,2293.8,3.2078]
[1726441892610,9.42,2295.2,2294.9,3.25319471]
[1726441892799,9.42,2295.2,2293.6,1.08981]
[1726441892800,9.42,2295.2,2295.1,3.25319471]
[1726441893302,9.42,2296.0,2295.1,3.25319471]
[1726441893516,9.42,2296.0,2293.9,1.08966]
[1726441893517,3.2078,2295.2,2294.2,0.4358]
[1726441893801,9.42,2295.3,2294.6,3.25319471]
[1726441893802,3.2078,2295.0,2294.6,3.25319471]
[1726441893997,3.2078,2295.0,2294.9,3.25319471]
[1726441894198,3.2078,2295.1,2294.9,3.25319471]
[1726441894406,3.2078,2295.1,2293.3,4.29775]
[1726441894601,4.3568,2295.2,2293.3,4.29775]
[1726441894602,3.2078,2294.4,2293.3,3.2078]
[1726441894904,9.42,2294.5,2293.6,3.2078]
[1726441895100,8.746,2294.5,2294.4,3.25319471]
[1726441895302,1.30629,2296.9,2294.4,3.25319471]
[1726441895303,3.2078,2295.1,2294.4,3.25319471]
[1726441895601,3.2078,2295.1,2293.1,4.82832415]
[1726441895602,3.2078,2295.1,2293.8,3.2078]
[1726441895800,9.42,2295.2,2293.8,3.2078]
[1726441895801,3.2078,2294.5,2293.8,3.2078]
[1726441895998,3.2078,2294.5,2293.2,3.2078]
[1726441896204,9.42,2294.4,2293.2,3.2078]
[1726441896605,3.2078,2294.9,2293.7,3.2078]
[1726441896815,3.2078,2294.9,2293.8,3.2078]
[1726441897103,9.42,2295.2,2294.5,3.2078]
[1726441897307,9.42,2295.2,2293.8,4.92610027]
[1726441897308,3.2078,2296.2,2294.8,3.2078]
[1726441897504,9.42,2298.4,2294.2,3.2078]
[1726441897505,12.6278,2295.6,2294.2,3.2078]
[1726441897703,12.6278,2295.6,2295.0,0.43564]
[1726441897896,12.6278,2295.6,2294.9,3.2078]
[1726441897897,3.2078,2295.6,2294.9,3.2078]
[1726441898099,3.2078,2295.6,2294.3,0.15501435]
[1726441898100,3.2078,2295.6,2294.5,3.2078]
[1726441898404,0.218,2298.3,2293.8,1.08972]
[1726441898405,3.2078,2294.7,2293.8,0.43588]
[1726441898607,9.42,2294.8,2292.8,1.09016]
[1726441898608,9.42,2294.8,2293.7,3.2078]
[1726441898908,3.2078,2295.2,2294.1,3.2078]
[1726441899105,3.2078,2295.2,2294.6,0.43573]
[1726441899305,3.2078,2295.0,2293.9,0.43586]
[1726441899506,3.2078,2294.7,2293.4,3.2078]
[1726441899828,3.2078,2295.1,2294.1,0.43582]
[1726441900004,3.2078,2295.1,2294.0,3.2078]
[1726441900506,3.2078,2295.4,2294.3,3.2078]
[1726441900898,3.2078,2295.1,2294.3,3.2078]
[1726441901205,9.42,2296.0,2293.4,1.08991]
[1726441901206,3.2078,2295.6,2294.6,3.2078]
[1726441901406,9.42,2296.0,2294.3,3.2078]
[1726441901407,3.2078,2295.3,2294.3,3.2078]
[1726441901912,9.42,2296.0,2294.4,0.43577]
[1726441901913,3.2078,2295.0,2294.4,0.43577]
[1726441902216,3.2078,2294.7,2293.6,3.2078]
[1726441902713,9.42,2295.2,2292.7,1.09021]
[1726441902714,3.2078,2294.3,2293.7,0.4359]
[1726441902913,3.2078,2294.9,2293.5,3.2078]
[1726441903308,3.2078,2294.9,2293.8,3.2078]
[1726441903913,3.2078,2294.9,2294.1,3.64362]
[1726441904103,3.2078,2294.9,2294.3,0.43579]
[1726441904304,9.42,2295.2,2294.4,3.2078]
[1726441904716,9.42,2295.2,2294.4,3.64356]
[1726441904918,9.42,2295.2,2294.4,3.2078]
[1726441905411,3.2078,2295.4,2294.7,3.6435]
[1726441905616,3.2078,2295.4,2294.7,3.2078]
[1726441905811,9.42,2295.9,2294.7,7.5654]
[1726441905812,3.2078,2295.8,2294.7,7.5654]
[1726441906013,3.2078,2295.8,2295.0,3.2078]
[1726441906217,3.2078,2295.8,2294.0,1.08959]
[1726441906218,3.2078,2295.8,2294.8,0.4357]
[1726441906516,3.2078,2295.8,2294.9,0.43567]
[1726441906714,3.2078,2296.1,2295.5,3.2078]
[1726441906916,9.42,2296.6,2295.3,0.43559]
[1726441906917,3.2078,2296.3,2295.3,0.43559]
[1726441907114,3.2078,2296.3,2295.2,3.2078]
[1726441907414,9.42,2296.6,2295.4,3.2078]
[1726441907415,3.2078,2296.6,2295.4,3.2078]
[1726441907619,3.2078,2295.7,2295.0,3.2078]
[1726441907807,9.42,2296.2,2294.7,3.2078]
[1726441907808,3.2078,2295.6,2294.7,3.2078]
[1726441908009,3.2078,2295.6,2295.0,0.43566]
[1726441908207,3.2078,2295.6,2294.7,3.2078]
[1726441908717,3.2078,2295.6,2294.0,1.08959]
[1726441908718,3.2078,2295.6,2294.8,3.64349]
[1726441908916,9.85545,2296.2,2295.2,3.2078]
[1726441908917,3.2078,2296.0,2295.2,3.2078]
[1726441909110,3.2078,2296.0,2294.8,8.1931517]
[1726441909413,3.2078,2295.7,2294.5,3.2078]
[1726441909613,3.2078,2295.7,2294.8,3.2078]
[1726441909911,3.2078,2295.4,2294.2,7.92876506]
[1726441910106,9.42,2296.2,2294.2,7.92876506]
[1726441910107,3.2078,2295.1,2294.3,0.43578]
[1726441910304,3.2078,2295.1,2293.9,3.2078]
[1726441910709,3.2078,2294.5,2293.7,4.63966979]
[1726441911014,2.17672,2296.7,2293.3,0.43597]
[1726441911015,3.2078,2293.9,2293.3,0.43597]
[1726441911208,3.2078,2293.9,2293.0,0.4442]
[1726441911209,9.42,2294.8,2293.6,3.2078]
[1726441911422,0.43557,2295.5,2294.4,0.43577]
[1726441911423,3.2078,2294.6,2294.4,0.43577]
[1726441911617,9.42,2295.5,2293.6,1.0898]
[1726441911618,3.2078,2294.9,2294.3,0.43579]
[1726441911812,3.2078,2294.9,2294.2,3.2078]
[1726441912125,3.2078,2295.3,2294.8,3.2078]
[1726441912314,3.2078,2295.3,2294.0,4.64242744]
[1726441912315,9.42,2296.2,2295.1,3.2078]
[1726441912619,3.2078,2296.3,2295.7,3.2078]
[1726441912816,3.2078,2296.3,2294.7,1.08927]
[1726441912817,3.2078,2296.3,2295.5,0.43556]
[1726441913521,3.2078,2296.6,2295.6,3.2078]
[1726441913717,3.2078,2296.3,2295.7,0.43551]
[1726441913915,3.2078,2296.3,2295.6,3.2078]
[1726441914124,3.2078,2296.3,2295.8,0.4355]
[1726441914421,7.06,2296.4,2295.6,3.2078]
[1726441914611,10.2678,2296.4,2295.9,0.43548]
[1726441914813,10.2678,2296.4,2295.6,3.2078]
[1726441915122,10.2678,2296.4,2295.8,0.4355]
[1726441915310,10.2678,2296.4,2295.9,3.64328]
[1726441915806,7.06,2296.4,2295.9,3.64329]
[1726441916016,7.06,2296.4,2295.9,3.2078]
[1726441916212,3.2078,2296.7,2296.3,0.4354]
[1726441916517,3.2078,2296.7,2296.0,4.3552]
[1726441916518,3.2078,2296.9,2296.0,12.18941172]
[1726441916725,3.2078,2296.9,2295.0,2.17824]
[1726441916726,3.2078,2297.2,2296.4,3.2078]
[1726441917018,3.2078,2296.7,2295.2,7.83421172]
[1726441917318,7.06,2296.4,2295.3,1.08901]
[1726441917625,1.08793,2297.6,2295.3,1.08901]
[1726441917626,7.06,2296.9,2296.4,0.43539]
[1726441918119,7.06,2296.9,2296.0,3.2078]
[1726441918318,7.06,2296.9,2296.3,3.2078]
[1726441918508,7.06,2296.9,2296.0,3.2078]
[1726441918709,3.2078,2297.1,2296.6,3.2078]
[1726441918906,7.06,2297.4,2296.7,4.3536]
[1726441919117,10.2678,2298.3,2297.2,3.2078]
[1726441919613,7.06,2298.3,2297.9,0.43511]
[1726441919826,3.2078,2298.7,2298.0,3.2078]
[1726441920116,7.06,2298.8,2298.1,3.2078]
[1726441920419,7.06,2299.8,2298.7,3.2078]
[1726441920618,7.06,2299.8,2299.2,3.2078]
[1726441920914,1.08594,2301.8,2299.5,3.2078]
[1726441920915,10.2678,2300.3,2299.5,3.2078]
[1726441921218,1.85769,2302.2,2299.8,3.2078]
[1726441921219,10.2678,2300.8,2299.8,3.2078]
[1726441921515,10.2678,2300.8,2298.9,1.08729]
[1726441921516,3.2078,2300.8,2299.6,3.2078]
[1726441921730,3.2078,2301.2,2300.2,0.43466]
[1726441922023,3.2078,2301.2,2300.0,3.2078]
[1726441922316,3.2078,2301.1,2300.5,3.2078]
[1726441922519,7.06,2301.3,2300.5,3.2078]
[1726441922707,7.06,2301.3,2300.6,0.4346]
[1726441922908,7.06,2301.3,2300.5,3.2078]
[1726441922909,7.06,2301.3,2300.7,0.43458]
[1726441923214,3.2078,2301.4,2300.7,3.2078]
[1726441923522,3.2078,2301.4,2299.8,1.08686]
[1726441923523,3.2078,2301.8,2301.0,3.2078]
[1726441923911,3.2078,2301.8,2301.5,0.43443]
[1726441924109,7.06,2302.4,2301.1,3.2078]
[1726441924110,3.2078,2302.1,2301.7,3.2078]
[1726441924322,1.08494,2304.0,2301.7,3.2078]
[1726441924323,10.2678,2302.9,2301.8,4.344]
[1726441924515,10.2678,2302.9,2302.0,3.2078]
[1726441924516,3.2078,2302.8,2302.0,3.2078]
[1726441924713,3.2078,2303.1,2302.0,3.2078]
[1726441924915,2.63994,2304.8,2301.2,4.344]
[1726441924916,7.06,2304.0,2303.0,3.2078]
[1726441925116,7.06,2304.0,2302.1,1.94875739]
[1726441925117,3.2078,2303.7,2302.4,3.2078]
[1726441925317,3.2078,2303.7,2302.1,1.94875739]
[1726441925318,3.2078,2303.5,2302.7,3.2078]
[1726441925506,3.2078,2303.5,2302.9,0.43416]
[1726441925706,7.06,2304.0,2303.0,4.3416]
[1726441925707,3.2078,2303.9,2303.0,4.3416]
[1726441925910,3.2078,2303.9,2303.1,0.43411]
[1726441926108,3.2078,2303.9,2303.3,0.43408]
[1726441926325,3.2078,2303.9,2303.3,3.2078]
[1726441926525,3.2078,2303.9,2302.0,1.08584]
[1726441926526,3.2078,2303.9,2302.9,3.2078]
[1726441926818,3.2078,2303.3,2302.8,0.43417]
[1726441927018,3.2078,2303.6,2303.3,0.43408]
[1726441927320,1.0016,2306.2,2303.3,0.43408]
[1726441927321,7.06,2304.4,2303.3,3.2078]
[1726441927525,3.2078,2304.0,2303.3,3.2078]
[1726441927723,3.2078,2303.7,2302.9,0.43415]
[1726441928016,0.43391,2304.3,2303.1,3.2078]
[1726441928017,3.2078,2304.0,2303.1,3.2078]
[1726441928219,3.2078,2304.0,2303.0,4.94671873]
[1726441928408,3.2078,2303.4,2301.8,3.2078]
[1726441928719,7.06,2303.8,2302.4,3.2078]
[1726441928720,3.2078,2303.7,2302.4,3.2078]
[1726441928920,7.06,2303.8,2302.0,4.59932842]
[1726441928921,3.2078,2303.8,2302.7,3.2078]
[1726441929125,3.2078,2304.1,2303.1,3.2078]
[1726441929315,7.06,2304.9,2302.8,4.3416]
[1726441929316,3.2078,2304.4,2303.6,3.64183]
[1726441929515,3.2078,2304.4,2303.9,3.2078]
[1726441929840,3.2078,2304.4,2304.0,0.43396]
[1726441930021,7.06,2304.9,2304.1,7.5478]
[1726441930225,3.2078,2305.0,2304.1,4.97855914]
[1726441930422,7.06,2304.4,2304.1,4.97855914]
[1726441930626,3.2078,2304.6,2303.1,1.08531]
[1726441930824,3.2078,2304.6,2303.8,3.2078]
[1726441931018,3.2078,2304.6,2303.8,7.99475711]
[1726441931219,3.2078,2304.6,2302.8,1.08545]
[1726441931220,3.2078,2305.0,2304.1,3.2078]
[1726441931526,3.2078,2305.0,2303.9,8.12545407]
[1726441931715,1.08388,2306.2,2303.9,8.12545407]
[1726441931716,3.2078,2304.2,2303.9,4.91765407]
[1726441931913,3.2078,2304.2,2303.3,4.91765407]
[1726441931914,3.2078,2304.2,2303.2,3.2078]
[1726441932113,3.2078,2304.6,2303.7,3.2078]
[1726441932318,1.08403,2305.9,2303.3,4.91765407]
[1726441932319,3.2078,2304.3,2303.3,4.91765407]
[1726441932622,3.2078,2304.7,2303.7,3.2078]
[1726441932818,0.7881,2306.7,2303.7,3.2078]
[1726441932819,7.06,2305.6,2304.6,3.2078]
[1726441933029,7.06,2305.6,2302.8,7.06]
[1726441933030,3.2078,2305.2,2304.1,3.2078]
[1726441933221,3.2078,2305.5,2304.7,3.2078]
[1726441933529,7.06,2306.2,2304.7,3.2078]
[1726441933530,3.2078,2305.6,2304.7,3.64161]
[1726441933731,3.2078,2305.6,2304.7,3.2078]
[1726441933918,3.2078,2305.7,2305.1,3.2078]
[1726441934114,0.00707716,2306.9,2304.8,4.82973032]
[1726441934115,3.2078,2305.2,2304.8,4.82973032]
[1726441934318,10.2678,2305.4,2304.3,3.2078]
[1726441934514,10.2678,2305.4,2304.4,0.43387]
[1726441934728,3.2078,2305.4,2304.3,3.2078]
[1726441934921,0.00707716,2306.9,2304.3,3.2078]
[1726441934922,3.2078,2306.3,2304.9,3.2078]
[1726441935120,3.2078,2306.6,2305.9,3.2078]
[1726441935317,0.00707716,2306.9,2305.0,4.57602362]
[1726441935318,3.2078,2306.0,2305.0,4.57602362]
[1726441935524,3.2078,2306.2,2305.2,3.2078]
[1726441936126,3.2078,2305.9,2305.2,3.2078]
[1726441936431,3.2078,2305.6,2304.7,0.43381]
[1726441936623,3.2078,2305.3,2304.5,3.2078]
[1726441937119,3.2078,2305.3,2304.0,4.92758238]
[1726441937120,3.2078,2305.3,2304.8,3.2078]
[1726441937334,3.2078,2305.7,2304.8,3.2078]
[1726441937522,3.2078,2305.7,2304.8,3.64159]
[1726441937723,10.2678,2306.3,2305.1,3.2078]
[1726441937923,10.70133,2306.3,2305.1,3.2078]
[1726441938239,10.70133,2306.3,2305.4,3.2078]
[1726441938240,3.2078,2306.3,2305.4,3.2078]
[1726441938837,3.2078,2306.7,2305.8,3.2078]
[1726441939024,0.00707716,2306.9,2305.5,9.06201352]
[1726441939025,0.00707716,2306.9,2306.1,3.2078]
[1726441939330,0.00707716,2306.9,2305.2,7.93301352]
[1726441939331,3.2078,2306.4,2305.2,7.93301352]
[1726441939532,3.2078,2306.1,2305.6,0.43364]
[1726441939831,3.2078,2306.1,2305.2,3.2078]
[1726441940034,3.2078,2306.1,2305.5,0.43366]
[1726441940339,3.2078,2306.8,2305.3,7.94950658]
[1726441940627,0.00707716,2306.9,2305.3,7.94950658]
[1726441940628,3.2078,2306.2,2305.3,7.94950658]
[1726441940830,3.2078,2305.4,2305.0,3.2078]
[1726441941026,3.2078,2305.4,2304.7,0.43382]
[1726441941222,3.2078,2305.4,2304.6,0.43384]
[1726441941422,2.16632,2307.8,2304.6,0.43384]
[1726441941423,3.2078,2305.7,2304.9,0.43379]
[1726441941636,3.2078,2305.7,2304.8,8.04197025]
[1726441941828,3.2078,2305.7,2304.8,3.2078]
[1726441942033,3.2078,2306.4,2305.3,3.2078]
[1726441942222,3.2078,2306.4,2304.9,4.3376]
[1726441942223,3.2078,2306.5,2305.8,0.4336]
[1726441942428,3.2078,2306.5,2305.9,3.2078]
[1726441942932,3.2078,2306.5,2305.4,3.2078]
[1726441943234,3.2078,2306.2,2305.5,0.43366]
[1726441943431,3.2078,2306.2,2305.4,3.2078]
[1726441943639,3.2078,2305.8,2304.9,3.2078]
[1726441943823,3.2078,2306.1,2304.9,3.2078]
[1726441944024,3.2078,2306.1,2305.2,3.2078]
[1726441944224,3.2078,2306.1,2305.7,0.43363]
[1726441944421,3.2078,2306.1,2305.3,8.12315216]
[1726441944632,3.2078,2306.4,2305.8,0.43362]
[1726441944928,3.2078,2306.4,2305.4,3.2078]
[1726441944929,0.00707716,2306.9,2306.0,3.2078]
[1726441945225,0.00707716,2306.9,2306.1,4.74787274]
[1726441945428,0.00707716,2306.9,2306.3,3.2078]
[1726441945624,0.00707716,2306.9,2306.3,3.64131]
[1726441945825,0.00707716,2306.9,2305.4,1.08423]
[1726441945826,0.00707716,2306.9,2306.4,4.3352]
[1726441946026,0.00707716,2306.9,2306.5,3.2078]
[1726441946222,0.00707716,2306.9,2306.5,8.04042285]
[1726441946426,0.00707716,2306.9,2306.5,4.83262285]
[1726441946625,0.00707716,2306.9,2306.2,3.2078]
[1726441946829,0.00707716,2306.9,2306.6,3.2078]
[1726441947030,3.2078,2307.7,2306.6,14.03203236]
[1726441947226,3.2078,2307.7,2306.5,3.2078]
[1726441947423,3.2078,2307.7,2306.9,0.43341]
[1726441947631,3.2078,2307.7,2306.8,3.2078]
[1726441948034,3.2078,2307.7,2306.9,0.4334]
[1726441948234,3.2078,2307.7,2306.8,3.2078]
[1726441948430,3.2078,2308.0,2307.1,0.43336]
[1726441948632,3.2078,2308.0,2307.1,3.2078]
[1726441948831,3.2078,2308.0,2307.1,3.64117]
[1726441949134,3.2078,2308.0,2307.2,0.43336]
[1726441949329,3.2078,2308.0,2307.2,4.93994745]
[1726441949537,3.2078,2307.4,2307.1,3.2078]
[1726441949732,3.2078,2307.4,2306.1,3.2078]
[1726441949936,2.16502,2309.1,2304.1,2.1503]
[1726441949937,3.2078,2306.4,2305.4,3.2078]
[1726441950233,0.21850409,2308.7,2304.1,1.1032]
[1726441950234,3.2078,2305.7,2305.0,3.2078]
[1726441950431,7.06,2306.3,2305.0,3.2078]
[1726441950432,3.2078,2306.0,2305.0,3.2078]
[1726441950627,3.2078,2305.7,2305.0,3.2078]
[1726441950836,3.2078,2305.7,2304.1,1.1032]
[1726441950837,3.2078,2305.8,2305.1,0.61265169]
[1726441951032,3.2078,2308.0,2305.8,3.2078]
[1726441951236,3.2078,2306.9,2306.0,3.2078]
[1726441951431,1.08327,2307.5,2304.8,4.782448]
[1726441951432,3.2078,2307.5,2306.3,3.2078]
[1726441951631,3.2078,2307.5,2306.1,3.2078]
[1726441951841,3.2078,2308.0,2307.0,3.2078]
[1726441952040,0.218,2309.9,2306.0,1.08392]
[1726441952041,3.2078,2308.3,2307.3,3.2078]
[1726441952541,3.2078,2309.1,2308.2,3.2078]
[1726441952740,3.2078,2309.4,2308.5,3.2078]
[1726441952944,1.1326,2310.0,2308.5,3.2078]
[1726441952945,3.2078,2309.1,2308.5,3.2078]
[1726441953244,3.2078,2309.0,2308.4,3.2078]
[1726441953444,3.2078,2309.3,2308.4,3.2078]
[1726441953636,3.2078,2309.0,2308.4,3.2078]
[1726441953831,3.2078,2309.0,2307.2,7.06]
[1726441953832,3.2078,2308.6,2307.8,3.2078]
[1726441954135,3.2078,2308.6,2307.9,3.2078]
[1726441954337,7.06,2308.7,2307.4,4.77433507]
[1726441954338,3.2078,2308.3,2307.5,3.2078]
[1726441954639,7.06,2308.7,2307.6,3.2078]
[1726441954833,3.2078,2308.8,2307.6,3.2078]
[1726441955034,3.2078,2308.8,2307.9,3.64102]
[1726441955235,3.2078,2308.8,2307.9,3.2078]
[1726441955436,3.2078,2308.9,2308.1,3.2078]
[1726441955636,3.2078,2308.9,2308.2,0.43317]
[1726441955842,0.43549311,2311.6,2307.5,0.43329]
[1726441955843,3.2078,2308.5,2307.5,0.43329]
[1726441956046,3.2078,2308.5,2306.6,1.08366]
[1726441956047,3.64092,2308.5,2307.3,3.64113]
[1726441956344,3.2078,2308.5,2307.3,3.2078]
[1726441956542,3.2078,2308.5,2308.0,3.2078]
[1726441956744,3.2078,2309.2,2308.3,3.2078]
[1726441957042,3.2078,2309.2,2307.4,4.68736684]
[1726441957043,3.2078,2309.2,2308.6,3.2078]
[1726441957231,3.2078,2309.8,2309.0,3.2078]
[1726441957435,3.2078,2309.5,2308.6,3.2078]
[1726441957837,3.2078,2309.1,2308.1,3.2078]
[1726441958038,3.2078,2309.1,2307.8,1.08308]
[1726441958039,3.2078,2309.5,2308.4,3.2078]
[1726441958541,3.2078,2309.2,2308.6,0.43308]
[1726441958936,3.2078,2309.2,2308.4,3.2078]
[1726441959240,3.2078,2309.5,2308.8,0.43306]
[1726441959442,3.2078,2309.5,2308.7,3.2078]
[1726441959652,7.06,2310.0,2309.2,0.43297]
[1726441959653,3.2078,2309.9,2309.2,0.43297]
[1726441959839,3.2078,2309.9,2308.8,1.07970586]
[1726441960038,10.2678,2310.0,2308.7,3.2078]
[1726441960238,3.2078,2310.0,2309.1,3.2078]
[1726441960735,3.2078,2310.0,2307.8,5.12938632]
[1726441960736,3.2078,2310.3,2309.4,3.2078]
[1726441960938,3.2078,2310.0,2309.0,3.2078]
[1726441961240,3.2078,2309.7,2309.0,3.64081]
[1726441961443,1.08188,2310.5,2308.7,3.2078]
[1726441961444,3.2078,2309.3,2308.7,3.2078]
[1726441961944,10.2678,2309.6,2308.7,3.64087]
[1726441962148,10.2678,2309.6,2308.7,3.2078]
[1726441962649,3.2078,2309.9,2309.0,3.2078]
[1726441962837,3.2078,2309.6,2308.8,4.53001092]
[1726441963041,3.2078,2309.3,2308.6,3.2078]
[1726441963343,3.2078,2309.0,2308.2,3.2078]
[1726441963755,7.06,2309.1,2308.5,0.43309]
[1726441964046,3.2078,2309.4,2308.5,3.2078]
[1726441964248,3.2078,2309.4,2308.7,0.43306]
[1726441964451,7.49291,2309.6,2308.2,3.2078]
[1726441964452,3.2078,2309.1,2308.2,3.2078]
[1726441964946,3.2078,2309.1,2306.3,2.1676]
[1726441964947,0.43313,2308.4,2308.3,4.51314527]
[1726441965154,0.43319,2308.1,2307.3,3.2078]
[1726441965355,0.43326,2307.7,2306.2,1.08386]
[1726441965539,0.43326,2307.7,2306.0,1.1961]
[1726441965540,10.2678,2307.7,2306.9,3.2078]
[1726441965740,10.2678,2307.7,2307.1,0.43336]
[1726441965741,3.2078,2307.4,2307.1,0.43336]
[1726441965947,3.2078,2307.4,2306.8,0.43342]
[1726441966147,3.2078,2307.8,2307.2,4.6041554]
[1726441966343,7.49316,2308.3,2307.2,7.8119554]
[1726441966344,3.2078,2308.3,2307.2,7.8119554]
[1726441966545,7.06,2308.8,2307.4,3.2078]
[1726441966546,3.2078,2308.4,2307.4,3.2078]
[1726441966953,10.2678,2307.8,2306.6,3.2078]
[1726441967153,10.2678,2307.8,2306.7,0.43343]
[1726441967154,0.43327,2307.7,2306.7,0.43343]
[1726441967449,3.2078,2307.5,2306.5,3.2078]
[1726441967851,7.06,2307.8,2307.3,0.43333]
[1726441968055,3.2078,2308.6,2307.5,3.2078]
[1726441968246,3.2078,2308.6,2307.9,3.2078]
[1726441968445,7.06,2308.8,2307.9,3.2078]
[1726441968646,3.2078,2308.5,2307.9,3.2078]
[1726441968844,3.2078,2308.5,2307.9,0.43322]
[1726441969144,2.25344,2309.5,2308.2,3.2078]
[1726441969145,3.2078,2308.9,2308.2,3.2078]
[1726441969351,1.1711,2309.5,2308.0,4.332]
[1726441969352,3.2078,2309.2,2308.6,3.2078]
[1726441969748,8.2011,2309.9,2308.6,3.2078]
[1726441969749,3.2078,2309.5,2308.6,3.2078]
[1726441970046,3.2078,2309.5,2307.2,1.2153]
[1726441970047,3.2078,2309.2,2308.2,3.2078]
[1726441970452,3.2078,2308.9,2308.2,3.2078]
[1726441970648,1.1411,2309.9,2307.5,0.43328]
[1726441970649,3.2078,2308.3,2307.5,0.43328]
[1726441970854,3.2078,2308.3,2307.4,3.2078]
[1726441971048,3.2078,2308.3,2307.7,3.2078]
[1726441971250,3.2078,2308.3,2307.8,0.43324]
[1726441971547,3.2078,2308.3,2307.7,3.64105]
[1726441971747,3.2078,2308.3,2307.7,3.2078]
[1726441971958,3.2078,2308.3,2307.8,0.43323]
[1726441972356,3.2078,2308.3,2307.7,3.2078]
[1726441972855,10.70086,2308.8,2307.9,0.43321]
[1726441973053,1.08243,2309.3,2308.0,3.2078]
[1726441973054,3.2078,2308.9,2308.0,3.2078]
[1726441973243,7.49297,2309.3,2308.0,3.2078]
[1726441973244,3.2078,2308.8,2308.0,4.77847761]
[1726441973448,7.06,2309.3,2308.5,0.4331]
[1726441973660,3.2078,2309.2,2308.5,3.2078]
[1726441973849,3.2078,2309.6,2308.5,3.2078]
[1726441974050,3.2078,2309.3,2308.6,0.43308]
[1726441974255,3.2078,2309.3,2308.8,3.2078]
[1726441974460,3.2078,2309.7,2309.1,3.2078]
[1726441974754,7.49286,2309.9,2309.1,3.2078]
[1726441974755,7.06,2309.9,2309.1,3.2078]
[1726441974948,3.2078,2310.0,2309.1,3.2078]
[1726441975146,3.2078,2310.0,2309.1,3.64079]
[1726441975553,3.2078,2310.0,2309.1,3.2078]
[1726441975554,3.2078,2309.7,2309.1,3.2078]
[1726441975951,3.2078,2309.7,2307.5,1.2038]
[1726441975952,10.2678,2309.4,2308.3,3.2078]